fUST/lending_fUST_20240525
["ID","MTS","AMOUNT","RATE_DAILY","PERIOD"]
[327891819,1716582638688,-742.82559498,0.00019178,2]
[327891821,1716582638698,-742.82559498,0.00019178,2]
[327891823,1716582638707,-742.82559498,0.00019178,2]
[327891825,1716582638717,-742.82559498,0.00019178,2]
[327891827,1716582638728,-742.82559498,0.00019178,2]
[327891829,1716582638738,-742.82559498,0.00019178,2]
[327891831,1716582638749,-742.82559498,0.00019178,2]
[327891833,1716582638758,-214.19874518,0.00019178,2]
[327891835,1716582638769,-742.82559498,0.00019178,2]
[327891837,1716582638778,-742.82559498,0.00019178,2]
[327891839,1716582638787,-742.82559498,0.00019178,2]
[327891841,1716582638797,-742.82559498,0.00019178,2]
[327891843,1716582638806,-742.82559498,0.00019178,2]
[327891845,1716582638816,-742.82559498,0.00019178,2]
[327891847,1716582638825,-742.82559498,0.00019178,2]
[327891849,1716582638835,-742.82559498,0.00019178,2]
[327891851,1716582638844,-742.82559498,0.00019178,2]
[327891853,1716582638854,-742.82559498,0.00019178,2]
[327891855,1716582638864,-742.82559498,0.00019178,2]
[327891857,1716582638874,-742.82559498,0.00019178,2]
[327891859,1716582638883,-742.82559498,0.00019178,2]
[327891861,1716582638893,-742.82559498,0.00019178,2]
[327891863,1716582638902,-742.82559498,0.00019178,2]
[327891865,1716582638912,-742.82559498,0.00019178,2]
[327891867,1716582638921,-742.82559498,0.00019178,2]
[327891869,1716582638931,-742.82559498,0.00019178,2]
[327891871,1716582638941,-742.82559498,0.00019178,2]
[327891873,1716582638950,-742.82559498,0.00019178,2]
[327891875,1716582638960,-742.82559498,0.00019178,2]
[327891876,1716582638970,-742.82559498,0.00019178,2]
[327891878,1716582638980,-742.82559498,0.00019178,2]
[327891880,1716582638990,-742.82559498,0.00019178,2]
[327891883,1716582639001,-207.60139182,0.00019178,2]
[327891884,1716582639010,-988.90622612,0.00019178,2]
[327891887,1716582639020,-988.90622612,0.00019178,2]
[327891889,1716582639030,-988.90622612,0.00019178,2]
[327891890,1716582639039,-988.90622612,0.00019178,2]
[327891893,1716582639050,-988.90622612,0.00019178,2]
[327891894,1716582639060,-988.90622612,0.00019178,2]
[327891897,1716582639070,-988.90622612,0.00019178,2]
[327891899,1716582639080,-988.90622612,0.00019178,2]
[327891900,1716582639090,-988.90622612,0.00019178,2]
[327891902,1716582639101,-988.90622612,0.00019178,2]
[327891904,1716582639111,-988.90622612,0.00019178,2]
[327891906,1716582639120,-988.90622612,0.00019178,2]
[327891908,1716582639130,-988.90622612,0.00019178,2]
[327891910,1716582639140,-988.90622612,0.00019178,2]
[327891912,1716582639150,-988.90622612,0.00019178,2]
[327891914,1716582639159,-988.90622612,0.00019178,2]
[327891916,1716582639169,-988.90622612,0.00019178,2]
[327891918,1716582639178,-988.90622612,0.00019178,2]
[327891920,1716582639188,-988.90622612,0.00019178,2]
[327891922,1716582639198,-988.90622612,0.00019178,2]
[327891924,1716582639207,-988.90622612,0.00019178,2]
[327891925,1716582639217,-988.90622612,0.00019178,2]
[327891926,1716582639227,-988.90622612,0.00019178,2]
[327891927,1716582639236,-988.90622612,0.00019178,2]
[327891928,1716582639247,-988.90622612,0.00019178,2]
[327891930,1716582639256,-988.90622612,0.00019178,2]
[327891931,1716582639266,-1077.38308235,0.00019178,2]
[327891932,1716582639276,-1077.38308235,0.00019178,2]
[327891933,1716582639286,-1077.38308235,0.00019178,2]
[327891934,1716582639297,-1077.38308235,0.00019178,2]
[327891935,1716582639306,-1846.94242687,0.00019178,2]
[327891936,1716582639316,-205.13687023,0.00019178,2]
[327891937,1716582639325,-171.011544,0.00019178,2]
[327891938,1716582639335,-1671.53030217,0.000199,2]
[327891939,1716582639345,-159.24640994,0.00019995,2]
[327891940,1716582639355,-638.83137504,0.00019996,2]
[327891941,1716582639364,-35077.5985902,0.00019997,2]
[327891942,1716582639374,-181.08892415,0.0002,2]
[327891943,1716582639383,-461.33820939,0.00020171,2]
[327891944,1716582639393,-174.6161986,0.00020912,2]
[327891945,1716582639403,-1475.50584945,0.00020913,2]
[327891946,1716582639413,-280.07453973,0.00020913,2]
[327891947,1716582639423,-1572.69650557,0.00021125,2]
[327891948,1716582639432,-461.33820939,0.00021724,2]
[327891949,1716582639442,-1572.69650557,0.00023172,2]
[327891950,1716582639453,-461.33820939,0.00023277,2]
[327891951,1716582639463,-383.886107,0.00024384,2]
[327891952,1716582639473,-201.296115,0.00024384,2]
[327891953,1716582639483,-9438.16794348,0.00024654,2]
[327891954,1716582639494,-190.8626778,0.00024655,2]
[327891955,1716582639504,-155.0,0.00024655,2]
[327891956,1716582639514,-189.36353741,0.00024655,2]
[327891957,1716582639524,-174.07730858,0.00024655,2]
[327891958,1716582639534,-653.2588396,0.00024655,2]
[327891959,1716582639543,-175.59818247,0.00024655,2]
[327891960,1716582639552,-284.17309766,0.00024655,2]
[327891961,1716582639563,-155.18172002,0.00024655,2]
[327891962,1716582639572,-180.01941178,0.00024655,2]
[327891963,1716582639582,-1193.14331087,0.00024655,2]
[327891964,1716582639591,-26675.86709485,0.00024655,2]
[327891965,1716582639601,-705.16190719,0.00024655,2]
[327891966,1716582639610,-163.26944534,0.00024655,2]
[327891967,1716582639620,-500.0,0.00024657,2]
[327891968,1716582639630,-500.0,0.00024657,2]
[327891969,1716582639641,-500.0,0.00024657,2]
[327891970,1716582639651,-183.66251676,0.00024657,2]
[327891971,1716582639661,-500.0,0.00024657,2]
[327891972,1716582639671,-500.0,0.00024657,2]
[327891973,1716582639680,-500.0,0.00024657,2]
[327891974,1716582639690,-500.0,0.00024657,2]
[327891975,1716582639700,-500.0,0.00024657,2]
[327891976,1716582639709,-500.0,0.00024657,2]
[327891977,1716582639719,-500.0,0.00024657,2]
[327891978,1716582639731,-500.96170455,0.00024657,2]
[327891979,1716582639742,-500.0,0.00024657,2]
[327891980,1716582639753,-500.0,0.00024657,2]
[327891981,1716582639763,-500.0,0.00024657,2]
[327891982,1716582639773,-500.0,0.00024657,2]
[327891983,1716582639783,-500.0,0.00024657,2]
[327891984,1716582639793,-500.0,0.00024657,2]
[327891985,1716582639803,-500.0,0.00024657,2]
[327891986,1716582639812,-500.0,0.00024657,2]
[327891987,1716582639822,-500.0,0.00024657,2]
[327891988,1716582639832,-500.0,0.00024657,2]
[327891989,1716582639841,-500.0,0.00024657,2]
[327891990,1716582639851,-500.0,0.00024657,2]
[327891991,1716582639861,-500.0,0.00024657,2]
[327891992,1716582639871,-500.0,0.00024657,2]
[327891993,1716582639881,-500.0,0.00024657,2]
[327891994,1716582639890,-500.0,0.00024657,2]
[327891995,1716582639900,-500.0,0.00024657,2]
[327891996,1716582639910,-500.0,0.00024657,2]
[327891997,1716582639920,-500.0,0.00024657,2]
[327891998,1716582639929,-500.0,0.00024657,2]
[327891999,1716582639939,-500.0,0.00024657,2]
[327892000,1716582639950,-209.5311994,0.00024657,2]
[327892001,1716582639959,-500.0,0.00024657,2]
[327892002,1716582639968,-500.0,0.00024657,2]
[327892003,1716582639978,-500.0,0.00024657,2]
[327892004,1716582639988,-500.0,0.00024657,2]
[327892005,1716582639999,-500.0,0.00024657,2]
[327892006,1716582640008,-500.0,0.00024657,2]
[327892007,1716582640018,-500.0,0.00024657,2]
[327892008,1716582640028,-500.0,0.00024657,2]
[327892009,1716582640038,-500.0,0.00024657,2]
[327892010,1716582640048,-500.0,0.00024657,2]
[327892011,1716582640058,-500.0,0.00024657,2]
[327892012,1716582640068,-500.0,0.00024657,2]
[327892013,1716582640078,-500.0,0.00024657,2]
[327892014,1716582640088,-500.0,0.00024657,2]
[327892015,1716582640098,-503.83234816,0.00024657,2]
[327892016,1716582640108,-500.0,0.00024657,2]
[327892017,1716582640118,-487.94829849,0.00024657,2]
[327892018,1716582640128,-500.0,0.00024657,2]
[327892019,1716582640138,-500.0,0.00024657,2]
[327892020,1716582640156,-500.0,0.00024657,2]
[327892021,1716582640166,-500.0,0.00024657,2]
[327892022,1716582640176,-500.0,0.00024657,2]
[327892023,1716582640186,-500.0,0.00024657,2]
[327892024,1716582640197,-500.0,0.00024657,2]
[327892025,1716582640207,-500.0,0.00024657,2]
[327892026,1716582640216,-500.0,0.00024657,2]
[327892027,1716582640226,-500.0,0.00024657,2]
[327892028,1716582640236,-500.0,0.00024657,2]
[327892030,1716582640247,-500.0,0.00024657,2]
[327892031,1716582640258,-500.0,0.00024657,2]
[327892032,1716582640267,-500.0,0.00024657,2]
[327892033,1716582640277,-502.36510628,0.00024657,2]
[327892034,1716582640287,-500.0,0.00024657,2]
[327892035,1716582640296,-500.0,0.00024657,2]
[327892036,1716582640306,-500.0,0.00024657,2]
[327892037,1716582640316,-500.0,0.00024657,2]
[327892038,1716582640325,-500.0,0.00024657,2]
[327892039,1716582640335,-500.0,0.00024657,2]
[327892040,1716582640345,-213.98,0.00024657,2]
[327892041,1716582640354,-690.63,0.00024657,2]
[327892042,1716582640364,-690.63,0.00024657,3]
[327892043,1716582640373,-690.63,0.00024657,4]
[327892044,1716582640383,-500.0,0.00024657,2]
[327892045,1716582640392,-690.63,0.00024657,5]
[327892046,1716582640401,-690.63,0.00024657,6]
[327892047,1716582640410,-690.63,0.00024657,7]
[327892048,1716582640420,-690.63,0.00024657,8]
[327892049,1716582640429,-690.63,0.00024657,9]
[327892050,1716582640439,-690.63,0.00024657,10]
[327892051,1716582640448,-500.0,0.00024657,2]
[327892052,1716582640458,-500.0,0.00024657,2]
[327892053,1716582640468,-500.0,0.00024657,2]
[327892054,1716582640478,-500.0,0.00024657,2]
[327892055,1716582640488,-500.0,0.00024657,2]
[327892056,1716582640498,-500.0,0.00024657,2]
[327892057,1716582640508,-500.0,0.00024657,2]
[327892058,1716582640518,-500.0,0.00024657,2]
[327892059,1716582640527,-4878.35,0.00024657,3]
[327892060,1716582640536,-4878.35,0.00024657,3]
[327892061,1716582640547,-4878.35,0.00024657,3]
[327892062,1716582640557,-405.61601921,0.00024657,2]
[327892063,1716582640567,-4878.35,0.00024657,3]
[327892064,1716582640577,-4878.35,0.00024657,3]
[327892065,1716582640587,-4878.35,0.00024657,3]
[327892066,1716582640596,-4878.35,0.00024657,3]
[327892067,1716582640607,-500.0,0.00024657,2]
[327892068,1716582640617,-500.0,0.00024657,2]
[327892069,1716582640626,-500.0,0.00024657,2]
[327892070,1716582640636,-500.0,0.00024657,2]
[327892071,1716582640650,-500.0,0.00024657,2]
[327892072,1716582640803,-500.0,0.00024657,2]
[327892073,1716582640813,-540.78372469,0.00024657,2]
[327892074,1716582640823,-500.0,0.00024657,2]
[327892075,1716582640833,-500.0,0.00024657,2]
[327892076,1716582640842,-871.28,0.00024657,2]
[327892077,1716582640852,-250.0,0.00024657,2]
[327892078,1716582640862,-500.0,0.00024657,2]
[327892079,1716582640871,-1009.35,0.00024657,2]
[327892080,1716582640881,-500.0,0.00024657,2]
[327892082,1716582640890,-500.0,0.00024657,2]
[327892083,1716582640900,-500.0,0.00024657,2]
[327892084,1716582640910,-1188.39,0.00024657,2]
[327892085,1716582640919,-500.0,0.00024657,2]
[327892086,1716582640929,-500.0,0.00024657,2]
[327892087,1716582640938,-500.0,0.00024657,2]
[327892088,1716582640948,-335.23,0.00024657,2]
[327892089,1716582640957,-573.45,0.00024657,2]
[327892090,1716582640966,-500.0,0.00024657,2]
[327892091,1716582640975,-500.0,0.00024657,2]
[327892092,1716582640985,-259.36149527,0.00024657,2]
[327892093,1716582640995,-528.41,0.00024657,2]
[327892094,1716582641004,-500.0,0.00024657,2]
[327892095,1716582641013,-1106.39,0.00024657,2]
[327892096,1716582641023,-500.0,0.00024657,2]
[327892097,1716582641032,-500.0,0.00024657,2]
[327892098,1716582641042,-500.0,0.00024657,2]
[327892099,1716582641052,-500.0,0.00024657,2]
[327892100,1716582641062,-500.0,0.00024657,2]
[327892101,1716582641072,-500.0,0.00024657,2]
[327892102,1716582641081,-500.0,0.00024657,2]
[327892103,1716582641090,-500.0,0.00024657,2]
[327892104,1716582641100,-500.0,0.00024657,2]
[327892105,1716582641110,-500.0,0.00024657,2]
[327892106,1716582641119,-380.0,0.00024658,2]
[327892107,1716582641129,-180.353169,0.0002471,2]
[327892108,1716582641138,-461.33820939,0.0002483,2]
[327892109,1716582641148,-69008.53358418,0.0002483,3]
[327892110,1716582641157,-4878.35,0.0002493,3]
[327892111,1716582641167,-500.0,0.00024931,3]
[327892112,1716582641176,-500.0,0.00024931,3]
[327892113,1716582641185,-500.0,0.00024931,3]
[327892114,1716582641195,-500.0,0.00024931,3]
[327892115,1716582641205,-500.0,0.00024931,3]
[327892116,1716582641214,-500.0,0.00024931,3]
[327892117,1716582641224,-500.0,0.00024931,3]
[327892118,1716582641233,-500.0,0.00024931,3]
[327892119,1716582641243,-500.0,0.00024931,3]
[327892120,1716582641251,-500.0,0.00024931,3]
[327892121,1716582641261,-500.0,0.00024931,3]
[327892122,1716582641270,-500.0,0.00024931,3]
[327892123,1716582641279,-500.0,0.00024931,3]
[327892124,1716582641289,-500.0,0.00024931,3]
[327892125,1716582641298,-500.0,0.00024931,3]
[327892126,1716582641307,-500.0,0.00024931,3]
[327892127,1716582641316,-500.0,0.00024931,3]
[327892128,1716582641325,-500.0,0.00024931,3]
[327892129,1716582641335,-500.0,0.00024931,3]
[327892130,1716582641343,-500.0,0.00024931,3]
[327892131,1716582641353,-500.0,0.00024931,3]
[327892132,1716582641362,-500.0,0.00024931,3]
[327892133,1716582641371,-500.0,0.00024931,3]
[327892134,1716582641380,-500.0,0.00024931,3]
[327892135,1716582641389,-595.96641044,0.00024931,3]
[327892136,1716582641398,-500.0,0.00024931,3]
[327892137,1716582641407,-500.0,0.00024931,3]
[327892138,1716582641417,-500.0,0.00024931,3]
[327892139,1716582641427,-500.0,0.00024931,3]
[327892140,1716582641436,-500.0,0.00024931,3]
[327892141,1716582641446,-500.0,0.00024931,3]
[327892142,1716582641455,-500.0,0.00024931,3]
[327892143,1716582641464,-500.0,0.00024931,3]
[327892144,1716582641473,-500.0,0.00024931,3]
[327892145,1716582641482,-500.0,0.00024931,3]
[327892146,1716582641492,-500.0,0.00024931,3]
[327892147,1716582641502,-500.0,0.00024931,3]
[327892148,1716582641511,-500.0,0.00024931,3]
[327892149,1716582641520,-871.28,0.00024931,3]
[327892150,1716582641529,-250.0,0.00024931,3]
[327892151,1716582641539,-412.63244144,0.00024931,3]
[327892152,1716582641548,-1009.35,0.00024931,3]
[327892153,1716582641557,-500.0,0.00024931,3]
[327892154,1716582641567,-500.0,0.00024931,3]
[327892155,1716582641576,-500.0,0.00024931,3]
[327892156,1716582641585,-1188.39,0.00024931,3]
[327892157,1716582641594,-500.0,0.00024931,3]
[327892158,1716582641604,-500.0,0.00024931,3]
[327892159,1716582641614,-500.0,0.00024931,3]
[327892160,1716582641623,-1106.39,0.00024931,3]
[327892161,1716582641633,-500.0,0.00024931,3]
[327892162,1716582641645,-500.0,0.00024931,3]
[327892163,1716582641655,-500.0,0.00024931,3]
[327892164,1716582641665,-500.0,0.00024931,3]
[327892165,1716582641674,-500.0,0.00024931,3]
[327892166,1716582641685,-500.0,0.00024931,3]
[327892167,1716582641694,-500.0,0.00024931,3]
[327892168,1716582641704,-500.0,0.00024931,2]
[327892169,1716582641713,-401.04849883,0.00025,2]
[327892170,1716582641725,-154.82968734,0.00025,14]
[327892171,1716582641734,-690.63,0.00025194,11]
[327892172,1716582641745,-3980.75777852,0.00025195,2]
[327892173,1716582641754,-760.9951019,0.00025195,2]
[327892174,1716582641764,-456.57692779,0.00025195,2]
[327892175,1716582641775,-3768.50267666,0.00025195,2]
[327892176,1716582641785,-331.24738005,0.00025195,2]
[327892177,1716582641794,-7177.15659591,0.00025195,2]
[327892178,1716582641804,-2248.73981793,0.00025195,7]
[327892179,1716582641814,-690.63,0.00025204,12]
[327892180,1716582641824,-4878.35,0.00025204,3]
[327892181,1716582641834,-500.0,0.00025205,4]
[327892182,1716582641843,-500.0,0.00025205,4]
[327892183,1716582641853,-500.0,0.00025205,4]
[327892184,1716582641863,-500.0,0.00025205,4]
[327892185,1716582641873,-500.0,0.00025205,4]
[327892186,1716582641883,-500.0,0.00025205,4]
[327892187,1716582641892,-500.0,0.00025205,4]
[327892188,1716582641902,-616.7,0.00025205,4]
[327892189,1716582641912,-500.0,0.00025205,4]
[327892190,1716582641922,-603.17,0.00025205,4]
[327892191,1716582641932,-500.0,0.00025205,4]
[327892192,1716582641941,-500.0,0.00025205,4]
[327892193,1716582641951,-500.0,0.00025205,4]
[327892194,1716582641961,-500.0,0.00025205,4]
[327892195,1716582641971,-500.0,0.00025205,4]
[327892196,1716582641981,-500.0,0.00025205,4]
[327892197,1716582641991,-500.0,0.00025205,4]
[327892198,1716582642001,-500.0,0.00025205,4]
[327892199,1716582642011,-500.0,0.00025205,4]
[327892200,1716582642021,-500.0,0.00025205,4]
[327892201,1716582642030,-500.0,0.00025205,4]
[327892202,1716582642040,-500.0,0.00025205,4]
[327892203,1716582642049,-317.14,0.00025205,4]
[327892204,1716582642059,-309.47594837,0.00025205,4]
[327892205,1716582642069,-358.32812072,0.00025205,4]
[327892206,1716582642078,-500.0,0.00025205,4]
[327892207,1716582642088,-500.0,0.00025205,4]
[327892208,1716582642097,-500.0,0.00025205,4]
[327892209,1716582642106,-500.0,0.00025205,4]
[327892210,1716582642116,-871.28,0.00025205,4]
[327892211,1716582642125,-250.0,0.00025205,4]
[327892212,1716582642135,-1009.35,0.00025205,4]
[327892213,1716582642144,-500.0,0.00025205,4]
[327892214,1716582642153,-500.0,0.00025205,4]
[327892215,1716582642162,-1188.39,0.00025205,4]
[327892216,1716582642171,-500.0,0.00025205,4]
[327892217,1716582642181,-474.29966897,0.00025205,4]
[327892218,1716582642190,-500.0,0.00025205,4]
[327892219,1716582642199,-1106.39,0.00025205,4]
[327892220,1716582642208,-500.0,0.00025205,4]
[327892221,1716582642218,-500.0,0.00025205,4]
[327892222,1716582642228,-500.0,0.00025205,4]
[327892223,1716582642237,-500.0,0.00025205,4]
[327892224,1716582642247,-609.98,0.00025205,4]
[327892225,1716582642256,-500.0,0.00025205,4]
[327892226,1716582642265,-500.0,0.00025205,4]
[327892227,1716582642274,-1572.69650557,0.00025219,2]
[327892228,1716582642283,-469.24,0.00025479,5]
[327892229,1716582642293,-500.0,0.00025479,5]
[327892230,1716582642303,-518.18,0.00025479,5]
[327892231,1716582642312,-500.0,0.00025479,5]
[327892232,1716582642322,-500.0,0.00025479,5]
[327892233,1716582642332,-500.0,0.00025479,5]
[327892234,1716582642341,-500.0,0.00025479,5]
[327892235,1716582642351,-219.31,0.00025479,5]
[327892236,1716582642360,-500.0,0.00025479,5]
[327892237,1716582642371,-500.0,0.00025479,5]
[327892238,1716582642380,-500.0,0.00025479,5]
[327892239,1716582642390,-500.0,0.00025479,5]
[327892240,1716582642399,-500.0,0.00025479,5]
[327892241,1716582642409,-500.0,0.00025479,5]
[327892242,1716582642419,-496.28,0.00025479,5]
[327892243,1716582642428,-500.0,0.00025479,5]
[327892244,1716582642437,-500.0,0.00025479,5]
[327892245,1716582642447,-500.0,0.00025479,5]
[327892246,1716582642456,-500.0,0.00025479,5]
[327892248,1716582642466,-871.28,0.00025479,5]
[327892249,1716582642475,-167.66192742,0.00025479,5]
[327892250,1716582642484,-1009.35,0.00025479,5]
[327892251,1716582642494,-621.24480575,0.00025479,5]
[327892252,1716582642504,-500.0,0.00025479,5]
[327892253,1716582642512,-1188.39,0.00025479,5]
[327892254,1716582642522,-500.0,0.00025479,5]
[327892255,1716582642532,-500.0,0.00025479,5]
[327892257,1716582642541,-1106.39,0.00025479,5]
[327892260,1716582642550,-373.0,0.00025479,5]
[327892262,1716582642559,-500.0,0.00025479,5]
[327892264,1716582642569,-500.0,0.00025479,5]
[327892266,1716582642579,-500.0,0.00025479,5]
[327892268,1716582642589,-500.0,0.00025479,5]
[327892270,1716582642600,-500.0,0.00025753,6]
[327892272,1716582642610,-500.0,0.00025753,6]
[327892274,1716582642619,-249.55,0.00025753,6]
[327892278,1716582642629,-500.0,0.00025753,6]
[327892281,1716582642640,-500.0,0.00025753,6]
[327892284,1716582642651,-567.63,0.00025753,6]
[327892286,1716582642661,-551.66,0.00025753,6]
[327892287,1716582642670,-500.0,0.00025753,6]
[327892288,1716582642679,-617.73,0.00025753,6]
[327892289,1716582642690,-369.21652864,0.00025753,6]
[327892290,1716582642699,-500.0,0.00025753,6]
[327892291,1716582642709,-500.0,0.00025753,6]
[327892292,1716582642720,-541.98,0.00025753,6]
[327892293,1716582642730,-500.0,0.00025753,6]
[327892294,1716582642740,-871.28,0.00025753,6]
[327892295,1716582642752,-1009.35,0.00025753,6]
[327892296,1716582642763,-500.0,0.00025753,6]
[327892297,1716582642773,-1188.39,0.00025753,6]
[327892298,1716582642783,-440.70151592,0.00025753,6]
[327892299,1716582642792,-500.0,0.00025753,6]
[327892300,1716582642802,-1106.39,0.00025753,6]
[327892301,1716582642812,-500.0,0.00025753,6]
[327892302,1716582642821,-500.0,0.00025753,6]
[327892303,1716582642831,-500.0,0.00025753,6]
[327892304,1716582642841,-4878.35,0.00026025,3]
[327892305,1716582642850,-500.0,0.00026027,7]
[327892306,1716582642860,-500.0,0.00026027,7]
[327892307,1716582642870,-159.82,0.00026027,7]
[327892308,1716582642879,-500.0,0.00026027,7]
[327892309,1716582642889,-500.0,0.00026027,7]
[327892310,1716582642899,-500.0,0.00026027,7]
[327892311,1716582642909,-500.0,0.00026027,7]
[327892312,1716582642919,-871.28,0.00026027,7]
[327892313,1716582642929,-1009.35,0.00026027,7]
[327892314,1716582642939,-500.0,0.00026027,7]
[327892315,1716582642949,-1188.39,0.00026027,7]
[327892316,1716582642959,-500.0,0.00026027,7]
[327892317,1716582642968,-1106.39,0.00026027,7]
[327892318,1716582642978,-500.0,0.00026027,7]
[327892319,1716582642989,-500.0,0.00026027,7]
[327892320,1716582643001,-500.0,0.00026027,7]
[327892321,1716582643011,-633.59336392,0.00026112,2]
[327892322,1716582643021,-690.63,0.000263,13]
[327892323,1716582643031,-320.99767926,0.00026301,8]
[327892324,1716582643041,-500.0,0.00026301,8]
[327892325,1716582643051,-500.0,0.00026301,8]
[327892326,1716582643061,-500.0,0.00026301,8]
[327892327,1716582643071,-500.0,0.00026301,8]
[327892328,1716582643080,-871.28,0.00026301,8]
[327892329,1716582643090,-1009.35,0.00026301,8]
[327892330,1716582643100,-500.0,0.00026301,8]
[327892331,1716582643110,-1188.39,0.00026301,8]
[327892332,1716582643120,-500.0,0.00026301,8]
[327892333,1716582643130,-1106.39,0.00026301,8]
[327892334,1716582643139,-500.0,0.00026301,8]
[327892335,1716582643148,-500.0,0.00026301,8]
[327892336,1716582643158,-500.0,0.00026301,8]
[327892337,1716582643167,-500.0,0.00026575,9]
[327892338,1716582643176,-500.0,0.00026575,9]
[327892339,1716582643186,-410.11,0.00026575,9]
[327892340,1716582643196,-500.0,0.00026575,9]
[327892341,1716582643206,-871.28,0.00026575,9]
[327892342,1716582643215,-1009.35,0.00026575,9]
[327892343,1716582643224,-500.0,0.00026575,9]
[327892344,1716582643234,-1188.39,0.00026575,9]
[327892345,1716582643244,-347.94,0.00026575,9]
[327892346,1716582643256,-1106.39,0.00026575,9]
[327892347,1716582643266,-500.0,0.00026575,9]
[327892348,1716582643277,-500.0,0.00026575,9]
[327892349,1716582643287,-500.0,0.00026575,9]
[327892351,1716582643297,-500.0,0.00026849,10]
[327892353,1716582643307,-500.0,0.00026849,10]
[327892355,1716582643317,-500.0,0.00026849,10]
[327892358,1716582643326,-871.28,0.00026849,10]
[327892360,1716582643336,-1009.35,0.00026849,10]
[327892362,1716582643346,-500.0,0.00026849,10]
[327892364,1716582643356,-1188.39,0.00026849,10]
[327892366,1716582643366,-1106.39,0.00026849,10]
[327892368,1716582643375,-500.0,0.00026849,10]
[327892370,1716582643385,-500.0,0.00026849,10]
[327892371,1716582643394,-500.0,0.00027123,11]
[327892372,1716582643404,-500.0,0.00027123,11]
[327892373,1716582643413,-500.0,0.00027123,11]
[327892374,1716582643422,-871.28,0.00027123,11]
[327892375,1716582643432,-1009.35,0.00027123,11]
[327892376,1716582643442,-500.0,0.00027123,11]
[327892377,1716582643451,-1188.39,0.00027123,11]
[327892378,1716582643461,-1106.39,0.00027123,11]
[327892379,1716582643471,-500.0,0.00027123,11]
[327892380,1716582643480,-500.0,0.00027123,11]
[327892381,1716582643490,-1572.69650557,0.00027266,2]
[327892382,1716582643501,-1137.40253748,0.0002739,2]
[327892383,1716582643509,-4878.35,0.00027395,3]
[327892384,1716582643518,-174.4,0.00027397,12]
[327892385,1716582643527,-500.0,0.00027397,12]
[327892386,1716582643537,-500.0,0.00027397,12]
[327892387,1716582643547,-871.28,0.00027397,12]
[327892388,1716582643556,-1009.35,0.00027397,12]
[327892389,1716582643565,-500.0,0.00027397,12]
[327892390,1716582643575,-1188.39,0.00027397,12]
[327892391,1716582643584,-1106.39,0.00027397,12]
[327892392,1716582643594,-453.11938359,0.00027397,12]
[327892393,1716582643603,-500.0,0.00027397,12]
[327892394,1716582643612,-620.6796682,0.00027417,2]
[327892395,1716582643622,-772.02658236,0.00027669,2]
[327892396,1716582643631,-629.7623599,0.00027669,2]
[327892397,1716582643645,-187.42513777,0.0002767,2]
[327892398,1716582643655,-194.07135861,0.0002767,2]
[327892399,1716582643665,-500.0,0.00027671,13]
[327892400,1716582643674,-500.0,0.00027671,13]
[327892401,1716582643685,-871.28,0.00027671,13]
[327892402,1716582643695,-1009.35,0.00027671,13]
[327892403,1716582643705,-500.0,0.00027671,13]